bitfinex-derivatives/quotes_SOLF0:USTF0_20260204
["timestamp","ask_amount","ask_price","bid_price","bid_amount"]
[1770199496523,7.52502578,97.136,97.101,3.6546593]
[1770199496724,3.82574753,97.145,97.101,3.6546593]
[1770199496921,3.82435163,97.143,97.096,9.2825]
[1770199497125,3.82435163,97.141,97.096,9.2825]
[1770199497325,3.82435163,97.139,97.096,9.2825]
[1770199497521,3.82435163,97.139,97.042,19.24097831]
[1770199497522,3.82435163,97.129,97.075,3.64723963]
[1770199497831,3.82435163,97.119,97.075,3.64723963]
[1770199498019,3.82435163,97.117,97.075,3.64723963]
[1770199498217,7.52457532,97.116,97.075,3.64723963]
[1770199498420,7.52457532,97.115,97.075,3.64723963]
[1770199498622,7.52457532,97.114,97.075,3.64723963]
[1770199498926,7.52457532,97.113,97.075,3.64723963]
[1770199499127,7.52457532,97.112,97.075,3.64723963]
[1770199499329,3.82435163,97.117,97.075,3.64723963]
[1770199499626,7.52598267,97.116,97.075,3.64723963]
[1770199499928,7.52598267,97.115,97.075,3.64723963]
[1770199500129,7.52598267,97.114,97.075,3.64723963]
[1770199500430,7.52598267,97.113,97.075,3.64723963]
[1770199500625,7.52598267,97.112,97.075,3.64723963]
[1770199500827,3.82435163,97.117,97.075,3.64723963]
[1770199501026,7.52578466,97.116,97.075,3.64723963]
[1770199501226,7.52578466,97.115,97.075,3.64723963]
[1770199501530,7.52578466,97.114,97.075,3.64723963]
[1770199501729,3.82435163,97.129,97.081,3.63566162]
[1770199501924,3.82435163,97.127,97.081,3.63566162]
[1770199502124,3.82435163,97.125,97.081,3.63566162]
[1770199502321,9.2789,97.135,97.081,3.63566162]
[1770199502322,11.34989188,97.124,97.081,3.63566162]
[1770199502622,7.52554025,97.123,97.081,3.63566162]
[1770199502824,7.52554025,97.122,97.081,3.63566162]
[1770199503022,7.52554025,97.121,97.083,3.63997171]
[1770199503223,3.82435163,97.142,97.091,3.63997171]
[1770199503425,3.82435163,97.14,97.091,3.63997171]
[1770199503631,7.5243088,97.139,97.101,3.63997171]
[1770199503820,7.5243088,97.138,97.101,3.63997171]
[1770199504022,3.82435163,97.136,97.09,3.39774408]
[1770199504226,3.82435163,97.134,97.09,3.39774408]
[1770199504426,7.5243088,97.133,97.092,12.93013963]
[1770199504620,7.5243088,97.132,97.093,3.64723963]
[1770199504822,3.82435163,97.134,97.093,3.64723963]
[1770199505022,7.52395812,97.133,97.093,3.64723963]
[1770199505226,7.52395812,97.132,97.093,3.64723963]
[1770199505431,3.82435163,97.134,97.093,3.64723963]
[1770199505833,3.82435163,97.134,97.095,12.92993963]
[1770199506827,3.82435163,97.134,97.102,9.2819]
[1770199507527,3.82435163,97.149,97.102,9.2819]
[1770199507731,3.82435163,97.147,97.102,9.2819]
[1770199507934,3.82435163,97.145,97.102,9.2819]
[1770199508133,3.82435163,97.143,97.102,9.2819]
[1770199508335,11.34935806,97.142,97.102,9.2819]
[1770199508635,7.52500643,97.141,97.102,9.2819]
[1770199508830,7.52500643,97.14,97.102,9.2819]
[1770199509033,7.52500643,97.139,97.102,9.2819]
[1770199509333,7.52500643,97.138,97.102,9.2819]
[1770199509534,7.52500643,97.137,97.102,9.2819]
[1770199509736,7.52500643,97.136,97.095,3.64723963]
[1770199509936,7.52500643,97.135,97.095,3.64723963]
[1770199510137,7.52500643,97.134,97.095,3.64723963]
[1770199510333,3.82435163,97.142,97.095,3.64723963]
[1770199510635,11.35009711,97.141,97.095,3.64723963]
[1770199510838,7.52574548,97.14,97.095,3.64723963]
[1770199511033,7.52574548,97.139,97.095,3.64723963]
[1770199511235,7.52574548,97.138,97.095,3.64723963]
[1770199511437,7.52574548,97.137,97.095,3.64723963]
[1770199511740,7.52574548,97.136,97.095,3.64723963]
[1770199511932,7.52574548,97.135,97.095,3.64723963]
[1770199512135,7.52574548,97.134,97.095,3.64723963]
[1770199512335,3.82435163,97.141,97.095,3.64723963]
[1770199512538,7.52449072,97.14,97.095,3.64723963]
[1770199512731,7.52449072,97.139,97.095,3.64723963]
[1770199512935,3.82435163,97.141,97.095,3.64723963]
[1770199513240,7.50763312,97.14,97.095,3.64723963]
[1770199513540,3.82435163,97.141,97.098,3.64723963]
[1770199513840,7.50723362,97.14,97.098,3.64723963]
[1770199514038,3.82435163,97.141,97.098,3.64723963]
[1770199514239,3.82435163,97.139,97.098,3.64723963]
[1770199516343,82.22,97.174,97.053,19.24097831]
[1770199516344,3.82435163,97.167,97.101,3.64723963]
[1770199516533,3.82435163,97.167,97.041,144.4778]
[1770199516534,3.82435163,97.211,97.151,3.64723963]
[1770199516736,3.82435163,97.211,97.161,3.64723963]
[1770199516935,3.82435163,97.211,97.161,12.92353963]
[1770199519738,9.59930339,97.253,97.118,18.561]
[1770199519739,3.82435163,97.238,97.181,3.64723963]
[1770199521343,3.39625227,97.24,97.183,3.6076179]
[1770199521553,3.68706555,97.25,97.201,3.6076179]
[1770199522443,3.68706555,97.219,97.161,3.6076179]
[1770199522842,82.2,97.251,97.161,3.6076179]
[1770199522843,3.68706555,97.209,97.161,3.6076179]
[1770199523038,3.68706555,97.189,97.132,3.6076179]
[1770199523944,3.39625227,97.18,97.132,3.6076179]
[1770199524743,3.68706555,97.179,97.132,3.6076179]
[1770199526241,3.39625227,97.16,97.1,7.00081092]
[1770199526444,3.68706555,97.159,97.101,3.60455865]
[1770199526845,7.08331782,97.15,97.101,3.60455865]
[1770199527142,3.68706555,97.139,97.087,3.60455865]
[1770199528747,3.68706555,97.139,97.091,3.6076179]
[1770199531347,3.68706555,97.129,97.075,3.6076179]
[1770199531750,3.68706555,97.129,97.07,3.39625227]
[1770199531751,3.68706555,97.129,97.076,3.6076179]
[1770199532843,3.68706555,97.129,97.078,3.6076179]
[1770199533547,82.2,97.156,97.091,3.6076179]
[1770199533548,3.68706555,97.144,97.091,3.6076179]
[1770199533847,9.2749,97.176,97.03,144.4943]
[1770199533848,3.68706555,97.158,97.111,3.6076179]
[1770199534042,3.68706555,97.158,97.124,9.2798]
[1770199534548,3.68706555,97.172,97.124,9.2798]
[1770199534744,3.68706555,97.17,97.124,9.2798]
[1770199534947,3.68706555,97.169,97.111,3.6076179]
[1770199535252,3.68706555,97.159,97.111,3.6076179]
[1770199535446,3.68706555,97.159,97.109,9.2813]
[1770199535650,3.68706555,97.149,97.096,12.8901179]
[1770199536646,3.68706555,97.149,97.09,3.39625227]
[1770199536852,3.68706555,97.129,97.084,9.2836]
[1770199537750,3.68706555,97.129,97.085,3.6076179]
[1770199538250,3.68706555,97.129,97.09,3.39625227]
[1770199538446,3.68706555,97.129,97.08,3.39625227]
[1770199538649,3.68706555,97.129,97.072,9.2849]
[1770199538852,82.2,97.162,97.069,3.6076179]
[1770199538853,3.68706555,97.119,97.069,3.6076179]
[1770199539352,3.68706555,97.119,97.07,3.39625227]
[1770199539658,3.68706555,97.119,97.074,9.2847]
[1770199539954,3.68706555,97.119,97.037,12.76309583]
[1770199539955,3.68706555,97.135,97.081,3.6076179]
[1770199540357,3.68706555,97.135,97.042,12.76309583]
[1770199540358,3.68706555,97.135,97.09,3.39625227]
[1770199545663,3.68706555,97.153,97.101,3.6076179]
[1770199547861,3.68706555,97.153,97.105,12.8893179]
[1770199550463,3.68706555,97.153,97.11,3.39625227]
[1770199550765,3.68706555,97.153,97.111,3.59848267]
[1770199550959,3.91830273,97.168,97.13,3.39625227]
[1770199551858,3.91830273,97.168,97.12,3.39625227]
[1770199552058,3.91830273,97.168,97.118,3.59848267]
[1770199554164,3.91830273,97.168,97.12,3.39625227]
[1770199554564,3.91830273,97.168,97.121,3.59848267]
[1770199558969,3.91830273,97.168,97.123,3.57390858]
[1770199564265,3.91830273,97.168,97.079,82.22]
[1770199564266,3.91830273,97.168,97.111,3.57390858]
[1770199568776,3.91830273,97.168,97.113,3.57390858]
[1770199572773,82.2,97.19,97.131,3.57390858]
[1770199572774,3.66046506,97.182,97.131,3.57390858]
[1770199572977,3.66046506,97.182,97.141,3.57390858]
[1770199574975,3.66046506,97.199,97.142,3.57390858]
[1770199575178,3.66046506,97.199,97.151,3.57390858]
[1770199575773,3.66046506,97.199,97.091,12.76309583]
[1770199575774,3.66046506,97.211,97.171,3.57390858]
[1770199576571,3.66046506,97.211,97.17,3.39516452]
[1770199577377,3.66046506,97.257,97.201,3.57390858]
[1770199577575,3.66046506,97.257,97.211,3.57390858]
[1770199581578,3.66046506,97.257,97.2,3.39516452]
[1770199581784,3.66046506,97.257,97.201,3.40237008]
[1770199582184,3.66046506,97.257,97.203,3.50272763]
[1770199584281,3.66046506,97.257,97.204,3.54352226]
[1770199586385,3.66046506,97.257,97.211,3.52232596]
[1770199587287,3.66046506,97.257,97.23,3.39516452]
[1770199587683,3.66046506,97.257,97.22,3.39516452]
[1770199588984,3.83691578,97.279,97.221,3.54269663]
[1770199589183,3.83691578,97.279,97.23,3.39516452]
[1770199590388,3.83691578,97.279,97.221,3.54269663]
[1770199594790,3.83691578,97.279,97.223,3.54782945]
[1770199595495,3.83691578,97.259,97.209,3.54782945]
[1770199595991,3.83691578,97.249,97.197,3.54782945]
[1770199596592,3.83691578,97.239,97.187,9.2738]
[1770199596793,3.83691578,97.239,97.188,3.5656553]
[1770199596992,3.83691578,97.239,97.191,3.5656553]
[1770199597190,3.83691578,97.239,97.2,12.66776452]
[1770199598096,9.61772142,97.308,97.152,82.12]
[1770199598097,3.83691578,97.259,97.22,3.39516452]
[1770199598395,3.83691578,97.259,97.211,3.5656553]
[1770199598597,3.83691578,97.259,97.2,3.39516452]
[1770199598786,3.83691578,97.249,97.198,9.2728]
[1770199599295,3.83691578,97.239,97.18,6.99877107]
[1770199599498,3.83691578,97.239,97.181,3.60360655]
[1770199599996,3.83691578,97.239,97.183,3.60360655]
[1770199601401,3.83691578,97.239,97.184,9.2742]
[1770199601593,3.83691578,97.239,97.185,3.63019309]
[1770199602895,3.83691578,97.229,97.174,9.2751]
[1770199603100,3.83691578,97.229,97.175,3.64748614]
[1770199609392,3.39516452,97.22,97.175,3.64748614]
[1770199609598,3.83691578,97.209,97.151,3.62856646]
[1770199609899,3.83691578,97.209,97.107,18.563]
[1770199609900,3.83691578,97.209,97.161,3.62856646]
[1770199610700,3.83691578,97.209,97.163,9.2762]
[1770199611101,9.52684379,97.274,97.104,82.14]
[1770199611102,3.64106463,97.189,97.143,3.52904196]
[1770199611398,3.64106463,97.179,97.125,3.52904196]
[1770199611797,3.39516452,97.19,97.131,3.52904196]
[1770199611999,3.64106463,97.189,97.131,3.52904196]
[1770199612498,3.64106463,97.204,97.151,3.52904196]
[1770199612895,3.64106463,97.204,97.16,3.39516452]
[1770199613199,3.64106463,97.204,97.161,3.52904196]
[1770199613797,3.64106463,97.218,97.161,3.52904196]
[1770199615001,3.64106463,97.218,97.168,3.52904196]
[1770199615303,7.03622915,97.23,97.171,3.52904196]
[1770199615505,3.64106463,97.229,97.171,3.52904196]
[1770199616707,3.64106463,97.219,97.171,3.52904196]
[1770199619410,9.2698,97.23,97.175,3.53289774]
[1770199619411,7.05573544,97.23,97.175,3.53289774]
[1770199619711,3.66057092,97.23,97.18,6.92806226]
[1770199621209,3.66057092,97.229,97.18,3.53289774]
[1770199621407,3.66057092,97.219,97.166,3.53289774]
[1770199621811,3.66057092,97.219,97.167,9.2757]
[1770199622202,3.66057092,97.219,97.167,12.80859774]
[1770199622402,3.66057092,97.219,97.168,3.53289774]
[1770199623005,3.66057092,97.219,97.17,3.39516452]
[1770199623404,3.66057092,97.219,97.17,6.92806226]
[1770199624416,3.66057092,97.219,97.17,3.53289774]
[1770199625619,3.66057092,97.219,97.171,3.53289774]
[1770199626213,3.66057092,97.219,97.17,3.39516452]
[1770199626214,3.66057092,97.248,97.201,3.53289774]
[1770199627721,3.66057092,97.239,97.187,3.53289774]
[1770199629323,3.66057092,97.219,97.171,3.53289774]
[1770199629510,12.79907119,97.279,97.111,82.16]
[1770199629511,3.66057092,97.209,97.14,3.39516452]
[1770199629715,3.66057092,97.199,97.141,3.53289774]
[1770199629911,3.66057092,97.199,97.15,3.39516452]
[1770199630609,3.66057092,97.199,97.141,3.53289774]
[1770199630810,3.66057092,97.199,97.144,3.53289774]
[1770199631311,3.66057092,97.199,97.15,3.39516452]
[1770199632523,3.66057092,97.199,97.15,3.39250735]
[1770199635822,3.66057092,97.199,97.16,3.39250735]
[1770199636614,3.66057092,97.199,97.16,6.92540509]
[1770199638214,3.66057092,97.199,97.16,3.53289774]
[1770199638419,3.66057092,97.199,97.15,3.39250735]
[1770199638625,3.66057092,97.199,97.15,3.53289774]
[1770199642221,3.66057092,97.199,97.151,3.62184177]
[1770199642621,3.66057092,97.199,97.16,7.01434912]
[1770199643125,3.66057092,97.199,97.16,3.62184177]
[1770199643930,7.49352175,97.198,97.16,3.62184177]
[1770199644228,7.49361184,97.197,97.16,3.62184177]
[1770199644426,3.56009113,97.195,97.147,3.62184177]
[1770199644628,7.49361184,97.194,97.147,3.62184177]
[1770199644826,3.56009113,97.195,97.147,3.62184177]
[1770199645025,7.49472221,97.194,97.147,3.62184177]
[1770199645224,7.49472221,97.194,97.088,19.04523445]
[1770199645225,3.56009113,97.189,97.133,3.62184177]
[1770199645427,3.56009113,97.179,97.133,3.62184177]
[1770199645629,3.56009113,97.177,97.133,3.62184177]
[1770199647427,3.56009113,97.189,97.14,3.39250735]
[1770199648229,3.56009113,97.187,97.133,3.62184177]
[1770199648524,3.56009113,97.179,97.133,3.62184177]
[1770199649327,3.56009113,97.169,97.118,3.62184177]
[1770199650731,3.56009113,97.166,97.118,3.62184177]
[1770199652035,3.56009113,97.164,97.118,3.62184177]
[1770199654832,3.56009113,97.162,97.118,3.62184177]
[1770199663836,3.56009113,97.162,97.113,9.2809]
[1770199664032,3.56009113,97.149,97.092,3.62184177]
[1770199664437,3.56009113,97.149,97.1,3.39250735]
[1770199664837,3.56009113,97.149,97.096,3.62184177]
[1770199665033,3.56009113,97.139,97.082,3.62184177]
[1770199665634,3.56009113,97.129,97.082,3.62184177]
[1770199665838,3.56009113,97.129,97.069,3.62184177]
[1770199666241,3.56009113,97.129,97.072,3.62184177]
[1770199667248,3.56009113,97.129,97.075,9.2845]
[1770199667447,3.56009113,97.129,97.076,3.62184177]
[1770199668345,3.56009113,97.129,97.021,103.2793]
[1770199668346,3.56009113,97.109,97.062,3.62184177]
[1770199668652,3.56009113,97.099,97.041,3.62184177]
[1770199668848,3.56009113,97.099,97.05,3.39250735]
[1770199669350,3.56009113,97.099,97.041,3.62184177]
[1770199669549,3.56009113,97.099,97.05,3.39250735]
[1770199670047,3.56009113,97.099,97.05,3.62184177]
[1770199671054,3.56009113,97.099,97.051,3.86952578]
[1770199672252,3.58058775,97.112,97.061,3.86952578]
[1770199673051,3.58058775,97.129,97.071,3.86952578]
[1770199673246,3.58058775,97.144,97.091,3.86952578]
[1770199674145,3.58058775,97.144,97.093,9.2828]
[1770199674344,3.58058775,97.144,97.1,3.39250735]
[1770199675852,3.58058775,97.162,97.12,3.39250735]
[1770199676252,3.58058775,97.159,97.111,3.86952578]
[1770199677654,3.84670335,97.149,97.1,3.39250735]
[1770199677954,3.84670335,97.149,97.042,12.69477342]
[1770199677955,3.84670335,97.109,97.041,3.79989267]
[1770199678151,3.84670335,97.099,97.041,3.79989267]
[1770199678455,3.84670335,97.099,97.05,3.39250735]
[1770199678656,3.84670335,97.099,97.05,7.19240002]
[1770199678956,3.84670335,97.099,97.041,3.79989267]
[1770199679452,3.84670335,97.099,97.051,3.79989267]
[1770199680255,3.84670335,97.089,97.037,3.79989267]
[1770199680558,3.84670335,97.089,97.041,3.79989267]
[1770199680854,3.39250735,97.11,97.051,3.79989267]
[1770199681160,3.39250735,97.11,96.992,82.22]
[1770199681161,3.84670335,97.117,97.071,3.79989267]
[1770199681659,3.84670335,97.136,97.081,3.79989267]
[1770199681854,3.39250735,97.13,97.07,3.39250735]
[1770199682061,3.84670335,97.129,97.071,3.79989267]
[1770199684862,3.84670335,97.129,97.081,3.79989267]
[1770199686058,3.84670335,97.129,97.09,3.39250735]
[1770199686258,3.84670335,97.145,97.091,3.79989267]
[1770199686463,3.84670335,97.145,97.1,3.39250735]
[1770199686962,3.84670335,97.145,97.091,3.79989267]
[1770199688863,3.84670335,97.145,97.1,3.39250735]
[1770199692160,3.84670335,97.145,97.075,3.79989267]
[1770199692360,3.84670335,97.129,97.08,7.19720392]
[1770199692566,3.84670335,97.129,97.07,3.39731125]
[1770199692762,3.84670335,97.129,97.071,3.79989267]
[1770199693067,3.84670335,97.127,97.071,3.79989267]
[1770199693267,3.84670335,97.125,97.071,3.79989267]
[1770199693467,7.75037007,97.124,97.071,3.79989267]
[1770199693765,7.75037007,97.123,97.071,3.79989267]
[1770199693967,7.75037007,97.122,97.071,3.79989267]
[1770199694166,7.75037007,97.121,97.071,3.79989267]
[1770199694367,7.75037007,97.12,97.071,3.79989267]
[1770199694568,3.84670335,97.125,97.071,3.79989267]
[1770199694768,7.75424145,97.124,97.071,3.79989267]
[1770199694966,7.75424145,97.123,97.071,3.79989267]
[1770199695166,7.75424145,97.122,97.071,3.79989267]
[1770199695362,7.75424145,97.121,97.08,3.39731125]
[1770199695569,3.84670335,97.125,97.081,3.79989267]
[1770199695869,7.75458911,97.124,97.081,3.79989267]
[1770199696067,7.75458911,97.123,97.081,3.79989267]
[1770199696268,7.75458911,97.122,97.081,3.79989267]
[1770199696465,3.84670335,97.125,97.081,3.79989267]
[1770199697269,7.7555216,97.124,97.081,3.79989267]
[1770199697470,3.84670335,97.125,97.081,3.79989267]
[1770199697671,7.75552232,97.124,97.081,3.79989267]
[1770199697866,9.60706749,97.149,97.091,3.79989267]
[1770199698067,7.75514295,97.148,97.11,7.19720392]
[1770199698272,3.84670335,97.153,97.111,3.79989267]
[1770199698474,7.75450028,97.152,97.111,3.79989267]
[1770199698772,7.75450028,97.151,97.112,9.2809]
[1770199699072,3.84670335,97.153,97.112,9.2809]
[1770199699273,7.75440465,97.152,97.112,9.2809]
[1770199699568,3.84670335,97.153,97.112,9.2809]
[1770199700172,3.84670335,97.153,97.112,13.08079267]
[1770199700668,3.84670335,97.169,97.12,7.19720392]
[1770199700875,7.7542004,97.168,97.12,7.19720392]
[1770199701071,7.7542004,97.167,97.12,7.19720392]
[1770199701274,3.84670335,97.169,97.12,7.19720392]
[1770199701275,7.7542004,97.166,97.12,7.19720392]
[1770199701576,3.66133639,97.164,97.12,3.79989267]
[1770199701772,3.66133639,97.149,97.092,3.66243053]
[1770199701974,3.39731125,97.15,97.092,3.66243053]
[1770199701975,3.66133639,97.147,97.092,3.66243053]
[1770199702270,3.66133639,97.139,97.094,9.2827]
[1770199702476,3.66133639,97.129,97.08,3.39731125]
[1770199702775,7.7542004,97.128,97.08,3.39731125]
[1770199703072,7.7542004,97.127,97.08,3.39731125]
[1770199703274,3.66133639,97.129,97.086,9.2835]
[1770199703466,7.75770592,97.128,97.086,9.2835]
[1770199703665,7.75770592,97.127,97.086,9.2835]
[1770199703875,7.75770592,97.126,97.086,9.2835]
[1770199704076,3.66133639,97.129,97.086,9.2835]
[1770199704077,7.75783489,97.125,97.086,9.2835]
[1770199704277,3.66133639,97.129,97.086,9.2835]
[1770199704475,3.66133639,97.129,97.08,3.39731125]
[1770199704476,7.75882432,97.128,97.08,3.39731125]
[1770199704672,3.66133639,97.126,97.078,9.2842]
[1770199704976,7.75882432,97.125,97.078,9.2842]
[1770199705172,7.75882432,97.124,97.078,9.2842]
[1770199705369,7.75882432,97.123,97.078,9.2842]
[1770199705569,7.75882432,97.122,97.078,12.94663053]
[1770199705870,7.75882432,97.121,97.078,12.94663053]
[1770199706067,7.75882432,97.12,97.078,12.94663053]
[1770199706271,7.76111892,97.119,97.078,12.94663053]
[1770199706470,3.66133639,97.117,97.069,9.2851]
[1770199706672,11.42297706,97.116,97.069,9.2851]
[1770199706867,7.76164067,97.115,97.07,3.39731125]
[1770199707070,7.76164067,97.114,97.07,3.39731125]
[1770199707271,3.66133639,97.116,97.07,3.39731125]
[1770199707577,7.76278319,97.115,97.07,3.39731125]
[1770199707770,7.76278319,97.114,97.07,3.39731125]
[1770199707969,3.66133639,97.112,97.063,3.66243053]
[1770199708167,7.76290745,97.111,97.063,3.66243053]
[1770199708365,7.76290745,97.11,97.063,3.66243053]
[1770199708575,3.66133639,97.108,97.063,3.66243053]
[1770199708776,3.66133639,97.106,97.063,3.66243053]
[1770199708970,3.66133639,97.106,97.05,3.39731125]
[1770199708971,3.66133639,97.104,97.05,3.39731125]
[1770199709177,3.66133639,97.102,97.051,3.66243053]
[1770199709376,11.42424384,97.101,97.051,3.66243053]
[1770199709573,7.76290745,97.1,97.051,3.66243053]
[1770199709772,7.76290745,97.099,97.051,3.66243053]
[1770199709977,7.76290745,97.098,97.051,3.66243053]
[1770199710173,7.76290745,97.097,97.051,3.66243053]
[1770199710373,7.76290745,97.096,97.051,3.66243053]
[1770199710580,7.76290745,97.095,97.051,3.66243053]
[1770199710780,7.76290745,97.094,97.051,3.66243053]
[1770199710970,3.66133639,97.101,97.051,3.66243053]
[1770199711169,3.66133639,97.099,97.051,3.66243053]
[1770199711381,3.66133639,97.097,97.04,12.68521125]
[1770199711581,3.66133639,97.089,97.041,3.66243053]
[1770199712376,3.66133639,97.103,97.051,3.66243053]
[1770199712578,3.66133639,97.101,97.051,3.66243053]
[1770199712779,3.66133639,97.099,97.051,3.66243053]
[1770199713082,7.76049632,97.098,97.051,3.66243053]
[1770199713381,3.66133639,97.079,97.02,3.39731125]
[1770199713574,3.66133639,97.077,97.02,3.39731125]
[1770199713777,3.66133639,97.069,97.019,3.66243053]
[1770199714081,3.66133639,97.067,97.019,3.66243053]
[1770199714276,11.42232285,97.066,97.019,3.66243053]
[1770199714480,11.42232285,97.066,96.985,1.79322285]
[1770199714481,3.66133639,97.079,97.03,3.39731125]
[1770199714778,7.75639392,97.078,97.03,3.39731125]
[1770199714979,7.75639392,97.077,97.03,3.39731125]
[1770199715178,7.75639392,97.076,97.03,3.39731125]
[1770199715381,3.66133639,97.074,97.021,3.66243053]
[1770199715682,3.66133639,97.074,97.027,9.2891]
[1770199716081,3.66133639,97.074,96.985,1.79322285]
[1770199716082,3.66133639,97.074,97.031,3.66243053]
[1770199716477,3.39731125,97.09,97.032,3.66243053]
[1770199716478,11.41213889,97.088,97.032,3.66243053]
[1770199716678,3.66133639,97.088,97.032,3.66243053]
[1770199717776,3.66133639,97.088,97.034,3.66243053]
[1770199719983,3.66133639,97.088,96.985,1.79322285]
[1770199719984,3.66133639,97.079,97.024,12.95183053]
[1770199720183,3.66133639,97.079,97.025,3.66243053]
[1770199720580,3.66133639,97.069,97.013,3.66243053]
[1770199720884,3.66133639,97.059,97.013,3.66243053]
[1770199721283,3.66133639,97.059,96.985,1.79322285]
[1770199721284,3.66133639,97.059,97.02,3.39731125]
[1770199722879,3.39731125,97.07,97.021,3.66243053]
[1770199723184,3.66133639,97.08,97.031,3.66243053]
[1770199723488,3.66133639,97.08,97.04,3.39731125]
[1770199723685,3.66133639,97.08,97.031,3.66243053]
[1770199724283,3.66133639,97.079,97.031,3.66243053]
[1770199724686,3.39731125,97.07,97.017,3.66243053]
[1770199724990,3.66133639,97.069,97.017,3.66243053]
[1770199727191,3.66133639,97.069,97.01,3.39731125]
[1770199729488,3.66133639,97.059,97.004,3.66243053]
[1770199729789,3.66133639,97.059,97.002,9.2915]
[1770199729790,3.66133639,97.059,97.011,3.66243053]
[1770199730092,3.66133639,97.079,97.021,3.66243053]
[1770199730988,3.74897619,97.069,97.007,3.54558266]
[1770199731195,3.74897619,97.069,97.011,3.54558266]
[1770199733292,3.74897619,97.059,97.011,3.54558266]
[1770199734894,3.74897619,97.072,97.021,3.54558266]
[1770199737485,3.39731125,97.07,97.021,3.54558266]
[1770199737696,3.74378043,97.069,97.021,3.54558266]
[1770199738396,3.74378043,97.068,97.01,7.08528035]
[1770199738596,3.74378043,97.068,97.011,3.6879691]
[1770199740099,3.74378043,97.068,97.015,3.6879691]
[1770199740297,3.74378043,97.068,97.021,3.6879691]
[1770199740500,3.74378043,97.068,97.011,3.6879691]
[1770199740894,3.74378043,97.065,97.011,3.6879691]
[1770199743202,3.39731125,97.06,97.011,3.6879691]
[1770199743401,3.74378043,97.059,97.011,3.6879691]
[1770199745596,3.74378043,97.059,97.0,3.39731125]
[1770199746199,3.74378043,97.059,97.001,3.6879691]
[1770199746406,3.74378043,97.039,96.981,3.6879691]
[1770199747403,3.74378043,97.039,96.991,3.6879691]
[1770199748702,3.74378043,97.038,96.991,3.6879691]
[1770199755214,11.26158189,97.037,96.991,3.6879691]
[1770199755422,3.74378043,97.037,96.991,3.6879691]
[1770199756519,3.74378043,97.034,96.98,3.40376778]
[1770199756721,3.74378043,97.029,96.98,3.6879691]
[1770199757421,3.40376778,97.02,96.98,3.6879691]
[1770199757622,3.74378043,97.019,96.98,3.6879691]
[1770199757828,3.74378043,96.999,96.943,3.6879691]
[1770199758123,3.74378043,96.989,96.943,3.6879691]
[1770199759024,3.74378043,96.987,96.943,3.6879691]
[1770199760824,3.71381117,96.985,96.943,3.6879691]
[1770199761423,3.71381117,96.985,96.93,6.99801657]
[1770199761627,3.71381117,96.985,96.931,3.59424879]
[1770199761824,3.40376778,96.98,96.931,3.59424879]
[1770199762021,3.71381117,96.979,96.931,3.59424879]
[1770199762421,3.71381117,96.976,96.931,3.59424879]
[1770199762823,3.71381117,96.976,96.92,3.40376778]
[1770199763023,3.71381117,96.969,96.915,3.59424879]
[1770199763223,3.71381117,96.966,96.915,3.59424879]
[1770199764222,3.71381117,96.966,96.92,6.99801657]
[1770199764526,3.71381117,96.985,96.931,3.59424879]
[1770199769730,3.71381117,96.979,96.931,3.59424879]
[1770199770122,3.71381117,96.969,96.92,3.59424879]
[1770199770523,3.71381117,96.969,96.921,3.59424879]
[1770199770722,3.71381117,96.984,96.931,3.59424879]
[1770199770923,3.71381117,96.984,96.941,3.59424879]
[1770199771426,3.71381117,96.984,96.888,18.6049]
[1770199771427,3.40376778,97.01,96.961,3.59424879]
[1770199771628,3.71381117,97.012,96.961,3.59424879]
[1770199771832,3.71381117,97.012,96.97,3.40376778]
[1770199773332,7.50245766,97.055,96.885,32.73510524]
[1770199773333,3.71381117,97.026,96.99,3.40376778]
[1770199774430,3.71381117,97.042,96.991,3.59424879]
[1770199774635,3.71381117,97.04,96.991,3.59424879]
[1770199775227,3.71381117,97.038,96.991,3.59424879]
[1770199778529,7.50245766,97.072,96.936,82.34]
[1770199778530,3.71381117,97.053,97.02,3.40376778]
[1770199778928,3.71381117,97.079,97.021,3.59424879]
[1770199780736,3.71381117,97.075,97.021,3.59424879]
[1770199781738,3.71381117,97.071,97.021,3.59424879]
[1770199782038,3.71381117,97.069,97.021,3.59424879]
[1770199782836,3.71381117,97.068,97.021,3.59424879]
[1770199783339,3.71381117,97.068,97.01,3.40376778]
[1770199783535,3.71381117,97.049,96.99,3.40376778]
[1770199783739,3.71381117,97.039,96.987,3.59424879]
[1770199786044,3.71381117,97.039,96.991,3.59424879]
[1770199790042,3.71381117,97.029,96.97,3.40376778]
[1770199790236,3.71381117,97.009,96.951,3.59424879]
[1770199791848,3.81782375,96.999,96.951,3.59424879]
[1770199792344,3.81782375,97.027,96.98,7.03799199]
[1770199792545,3.81782375,97.027,96.981,3.63422421]
[1770199792842,7.50245766,97.038,97.0,3.40376778]
[1770199793039,3.81782375,97.041,97.0,3.40376778]
[1770199793240,3.81782375,97.041,96.991,3.63422421]
[1770199794548,3.81782375,97.039,96.991,3.63422421]
[1770199799452,3.81782375,97.039,97.0,3.40376778]
[1770199800450,3.81782375,97.039,96.991,3.63422421]
[1770199801652,3.67341303,97.071,97.021,3.65005139]